fUSD/lending_fUSD_20250111
["ID","MTS","AMOUNT","RATE_DAILY","PERIOD"]
[348527289,1736604659524,-845.84,0.00010436,2]
[348527290,1736604659533,-1425.89,0.00010436,2]
[348527291,1736604659541,-905.01,0.00010436,2]
[348527292,1736604659550,-727.59,0.00010436,2]
[348527293,1736604659559,-14303.558878,0.00010436,2]
[348527294,1736604659568,-14532.787403,0.00010436,2]
[348527295,1736604659577,-500.0,0.00010436,2]
[348527296,1736604659586,-679.2,0.00010436,2]
[348527297,1736604659595,-722.85,0.00010436,2]
[348527298,1736604659604,-655.46,0.00010436,2]
[348527299,1736604659613,-500.0,0.00010436,2]
[348527300,1736604659622,-211.257229,0.00010436,2]
[348527301,1736604659631,-500.0,0.00010436,2]
[348527302,1736604659641,-500.0,0.00010436,2]
[348527303,1736604659651,-741.73,0.00010436,2]
[348527304,1736604659660,-500.0,0.00010436,2]
[348527305,1736604659669,-500.0,0.00010437,2]
[348527306,1736604659680,-500.0,0.00010437,2]
[348527307,1736604659689,-500.0,0.00010437,2]
[348527308,1736604659698,-500.0,0.00010437,2]
[348527309,1736604659707,-500.0,0.00010437,2]
[348527310,1736604659717,-500.0,0.00010437,2]
[348527311,1736604659726,-500.0,0.00010437,2]
[348527312,1736604659735,-500.0,0.00010437,2]
[348527313,1736604659744,-500.0,0.00010437,2]
[348527314,1736604659753,-500.0,0.00010437,2]
[348527315,1736604659763,-500.0,0.00010437,2]
[348527316,1736604659772,-500.0,0.00010437,2]
[348527317,1736604659781,-580.7,0.00010437,2]
[348527318,1736604659791,-500.0,0.00010437,2]
[348527319,1736604659800,-500.0,0.00010437,2]
[348527320,1736604659809,-500.0,0.00010437,2]
[348527321,1736604659818,-500.0,0.00010437,2]
[348527322,1736604659828,-511.1,0.00010437,2]
[348527323,1736604659836,-500.0,0.00010437,2]
[348527324,1736604659846,-500.0,0.00010437,2]
[348527325,1736604659855,-500.0,0.00010437,2]
[348527326,1736604659864,-500.0,0.00010437,2]
[348527327,1736604659873,-500.0,0.00010437,2]
[348527328,1736604659882,-647.57,0.00010437,2]
[348527329,1736604659891,-500.0,0.00010437,2]
[348527330,1736604659900,-226.2,0.00010437,2]
[348527331,1736604659909,-313.87,0.00010437,2]
[348527332,1736604659918,-500.0,0.00010437,2]
[348527333,1736604659927,-500.0,0.00010437,2]
[348527334,1736604659936,-500.0,0.00010437,2]
[348527335,1736604659945,-500.0,0.00010437,2]
[348527336,1736604659954,-216.18,0.00010437,2]
[348527337,1736604659963,-500.0,0.00010437,2]
[348527338,1736604659972,-602.55,0.00010437,2]
[348527339,1736604659981,-500.0,0.00010437,2]
[348527340,1736604659991,-500.0,0.00010437,2]
[348527341,1736604660000,-500.0,0.00010437,2]
[348527342,1736604660009,-470.26086273,0.00010437,2]
[348527343,1736604660018,-548.94,0.00010437,2]
[348527344,1736604660027,-500.0,0.00010437,2]
[348527345,1736604660038,-500.0,0.00010437,2]
[348527346,1736604660048,-576.72,0.00010437,2]
[348527347,1736604660058,-500.0,0.00010437,2]
[348527348,1736604660067,-500.0,0.00010437,2]
[348527349,1736604660077,-500.0,0.00010437,2]
[348527350,1736604660087,-500.0,0.00010437,2]
[348527351,1736604660096,-615.65,0.00010437,2]
[348527352,1736604660105,-667.71,0.00010437,2]
[348527353,1736604660114,-500.0,0.00010437,2]
[348527354,1736604660124,-500.0,0.00010437,2]
[348527355,1736604660134,-500.0,0.00010437,2]
[348527356,1736604660143,-618.88,0.00010437,2]
[348527357,1736604660151,-500.0,0.00010437,2]
[348527358,1736604660161,-713.91,0.00010437,2]
[348527359,1736604660170,-500.0,0.00010437,2]
[348527360,1736604660179,-531.29,0.00010437,2]
[348527361,1736604660188,-630.1766194,0.00010437,2]
[348527362,1736604660198,-607.0,0.00010437,2]
[348527363,1736604660207,-500.0,0.00010437,2]
[348527364,1736604660216,-500.0,0.00010437,2]
[348527365,1736604660225,-500.0,0.00010437,2]
[348527366,1736604660235,-500.0,0.00010437,2]
[348527367,1736604660244,-500.0,0.00010437,2]
[348527368,1736604660254,-597.13,0.00010437,2]
[348527369,1736604660263,-503.57075237,0.00010437,2]
[348527370,1736604660272,-500.0,0.00010437,2]
[348527371,1736604660283,-231.77,0.00010437,2]
[348527372,1736604660292,-213.75,0.00010437,2]
[348527373,1736604660301,-500.0,0.00010437,2]
[348527374,1736604660312,-759.87,0.00010437,2]
[348527375,1736604660323,-500.0,0.00010437,2]
[348527376,1736604660332,-500.0,0.00010437,2]
[348527377,1736604660341,-500.0,0.00010437,2]
[348527378,1736604660351,-500.0,0.00010437,2]
[348527379,1736604660360,-500.0,0.00010437,2]
[348527380,1736604660369,-500.0,0.00010437,2]
[348527381,1736604660378,-500.0,0.00010437,2]
[348527382,1736604660387,-500.0,0.00010437,2]
[348527383,1736604660396,-500.0,0.00010437,2]
[348527384,1736604660405,-500.0,0.00010437,2]
[348527385,1736604660414,-224.86,0.00010437,2]
[348527386,1736604660423,-367.08817422,0.00010437,2]
[348527387,1736604660433,-446.68840048,0.00010437,2]
[348527388,1736604660442,-500.0,0.00010437,2]
[348527389,1736604660451,-614.66333969,0.00010437,2]
[348527390,1736604660460,-500.0,0.00010437,2]
[348527391,1736604660470,-500.0,0.00010437,2]
[348527392,1736604660479,-500.0,0.00010437,2]
[348527393,1736604660489,-500.0,0.00010437,2]
[348527394,1736604660498,-599.02,0.00010437,2]
[348527395,1736604660507,-622.39,0.00010437,2]
[348527396,1736604660517,-500.0,0.00010437,2]
[348527397,1736604660526,-509.04869692,0.00010437,2]
[348527398,1736604660535,-500.0,0.00010437,2]
[348527399,1736604660544,-500.0,0.00010437,2]
[348527400,1736604660554,-500.0,0.00010437,2]
[348527401,1736604660563,-521.53,0.00010437,2]
[348527402,1736604660572,-379.50407703,0.00010437,2]
[348527403,1736604660581,-538.94,0.00010437,2]
[348527404,1736604660591,-500.0,0.00010437,2]
[348527405,1736604660601,-500.0,0.00010437,2]
[348527406,1736604660611,-500.0,0.00010437,2]
[348527407,1736604660621,-500.0,0.00010437,2]
[348527408,1736604660631,-500.0,0.00010437,2]
[348527409,1736604660641,-500.0,0.00010437,2]
[348527410,1736604660650,-163.82214848,0.00010437,2]
[348527411,1736604660660,-296.54260467,0.00010437,2]
[348527412,1736604660670,-500.0,0.00010437,2]
[348527413,1736604660680,-581.87,0.00010437,2]
[348527414,1736604660689,-500.0,0.00010437,2]
[348527415,1736604660698,-500.0,0.00010437,2]
[348527416,1736604660707,-500.0,0.00010437,2]
[348527417,1736604660717,-500.0,0.00010437,2]
[348527418,1736604660726,-500.0,0.00010437,2]
[348527419,1736604660735,-500.0,0.00010437,2]
[348527420,1736604660745,-500.0,0.00010437,2]
[348527421,1736604660754,-500.0,0.00010437,2]
[348527422,1736604660764,-500.0,0.00010437,2]
[348527423,1736604660773,-551.33,0.00010437,2]
[348527424,1736604660783,-500.0,0.00010437,2]
[348527425,1736604660792,-500.0,0.00010437,2]
[348527426,1736604660801,-500.0,0.00010437,2]
[348527427,1736604660810,-500.0,0.00010437,2]
[348527428,1736604660819,-500.0,0.00010437,2]
[348527429,1736604660829,-600.96,0.00010437,2]
[348527430,1736604660838,-500.0,0.00010437,2]
[348527431,1736604660847,-150.43,0.00010437,2]
[348527432,1736604660858,-500.0,0.00010437,2]
[348527433,1736604660867,-525.61,0.00010437,2]
[348527434,1736604660876,-500.0,0.00010437,2]
[348527435,1736604660885,-576.85,0.00010437,2]
[348527436,1736604660894,-460.44,0.00010437,2]
[348527437,1736604660903,-500.0,0.00010437,2]
[348527438,1736604660912,-604.27489655,0.00010437,2]
[348527439,1736604660921,-500.0,0.00010437,2]
[348527440,1736604660931,-500.0,0.00010437,2]
[348527441,1736604660940,-175.7848633,0.00010437,2]
[348527442,1736604660949,-500.0,0.00010437,2]
[348527443,1736604660958,-500.0,0.00010437,2]
[348527444,1736604660968,-500.0,0.00010437,2]
[348527445,1736604660977,-500.0,0.00010437,2]
[348527446,1736604660987,-500.0,0.00010437,2]
[348527447,1736604660995,-500.0,0.00010437,2]
[348527448,1736604661005,-612.35,0.00010437,2]
[348527449,1736604661015,-450.92,0.00010437,2]
[348527450,1736604661024,-524.57,0.00010437,2]
[348527451,1736604661034,-500.0,0.00010437,2]
[348527452,1736604661043,-500.0,0.00010437,2]
[348527453,1736604661052,-500.0,0.00010437,2]
[348527454,1736604661061,-986.11,0.00010437,2]
[348527455,1736604661071,-500.0,0.00010437,2]
[348527456,1736604661080,-500.0,0.00010437,2]
[348527457,1736604661089,-500.0,0.00010437,2]
[348527458,1736604661098,-523.99,0.00010437,2]
[348527459,1736604661107,-500.0,0.00010437,2]
[348527460,1736604661116,-500.0,0.00010437,2]
[348527461,1736604661125,-500.0,0.00010437,2]
[348527462,1736604661134,-500.0,0.00010437,2]
[348527463,1736604661143,-500.0,0.00010437,2]
[348527464,1736604661152,-500.0,0.00010437,2]
[348527465,1736604661162,-500.0,0.00010437,2]
[348527466,1736604661171,-2707.87,0.00010437,2]
[348527467,1736604661180,-500.0,0.00010437,2]
[348527468,1736604661189,-500.0,0.00010437,2]
[348527469,1736604661199,-412.03198237,0.00010437,2]
[348527470,1736604661208,-500.0,0.00010437,2]
[348527471,1736604661217,-500.0,0.00010437,2]
[348527472,1736604661226,-500.0,0.00010437,2]
[348527473,1736604661236,-500.0,0.00010437,2]
[348527474,1736604661245,-500.0,0.00010437,2]
[348527475,1736604661254,-500.0,0.00010437,2]
[348527476,1736604661263,-500.0,0.00010437,2]
[348527477,1736604661273,-500.0,0.00010437,2]
[348527478,1736604661283,-500.0,0.00010437,2]
[348527479,1736604661292,-500.0,0.00010437,2]
[348527480,1736604661302,-500.0,0.00010437,2]
[348527481,1736604661313,-500.0,0.00010437,2]
[348527482,1736604661323,-516.80274744,0.00010437,2]
[348527483,1736604661332,-500.0,0.00010437,2]
[348527484,1736604661341,-500.0,0.00010437,2]
[348527485,1736604661351,-500.0,0.00010437,2]
[348527486,1736604661360,-500.0,0.00010437,2]
[348527487,1736604661369,-501.67389147,0.00010437,2]
[348527488,1736604661378,-1835.26,0.00010437,2]
[348527489,1736604661387,-500.0,0.00010437,2]
[348527490,1736604661396,-500.0,0.00010437,2]
[348527491,1736604661406,-500.0,0.00010437,2]
[348527492,1736604661415,-500.0,0.00010437,2]
[348527493,1736604661425,-500.0,0.00010437,2]
[348527494,1736604661434,-512.50145453,0.00010437,2]
[348527495,1736604661443,-500.0,0.00010437,2]
[348527496,1736604661455,-500.0,0.00010437,2]
[348527497,1736604661465,-500.0,0.00010437,2]
[348527498,1736604661474,-500.0,0.00010437,2]
[348527499,1736604661484,-500.0,0.00010437,2]
[348527500,1736604661493,-501.73024803,0.00010437,2]
[348527501,1736604661503,-500.0,0.00010437,2]
[348527502,1736604661512,-500.0,0.00010437,2]
[348527503,1736604661521,-500.0,0.00010437,2]
[348527504,1736604661530,-2881.45,0.00010437,2]
[348527505,1736604661541,-500.0,0.00010437,2]
[348527506,1736604661550,-500.0,0.00010437,2]
[348527507,1736604661559,-500.0,0.00010437,2]
[348527508,1736604661569,-963.54,0.00010437,2]
[348527509,1736604661578,-500.0,0.00010437,2]
[348527510,1736604661587,-500.0,0.00010437,2]
[348527511,1736604661596,-500.0,0.00010437,2]
[348527512,1736604661606,-500.0,0.00010437,2]
[348527513,1736604661615,-539.34,0.00010437,2]
[348527514,1736604661624,-500.0,0.00010437,2]
[348527515,1736604661634,-500.0,0.00010437,2]
[348527516,1736604661643,-502.52209572,0.00010437,2]
[348527517,1736604661653,-501.02287749,0.00010437,2]
[348527518,1736604661662,-500.0,0.00010437,2]
[348527519,1736604661672,-500.0,0.00010437,2]
[348527520,1736604661681,-625.64,0.00010437,2]
[348527521,1736604661690,-541.66,0.00010437,2]
[348527522,1736604661700,-500.0,0.00010437,2]
[348527523,1736604661710,-500.0,0.00010437,2]
[348527524,1736604661719,-560.75,0.00010437,2]
[348527525,1736604661729,-500.0,0.00010437,2]
[348527526,1736604661739,-500.0,0.00010437,2]
[348527527,1736604661750,-500.0,0.00010437,2]
[348527528,1736604661760,-500.0,0.00010438,2]
[348527529,1736604661769,-500.0,0.00010438,2]
[348527530,1736604661778,-500.0,0.00010438,2]
[348527531,1736604661788,-500.0,0.00010438,2]
[348527532,1736604661797,-500.0,0.00010438,2]
[348527533,1736604661807,-500.0,0.00010438,2]
[348527534,1736604661816,-629.94,0.00010438,2]
[348527535,1736604661826,-500.0,0.00010438,2]
[348527536,1736604661835,-500.0,0.00010438,2]
[348527537,1736604661845,-500.0,0.00010438,2]
[348527538,1736604661854,-500.0,0.00010438,2]
[348527539,1736604661863,-500.0,0.00010438,2]
[348527540,1736604661872,-500.0,0.00010438,2]
[348527541,1736604661882,-500.0,0.00010438,2]
[348527542,1736604661891,-500.0,0.00010438,2]
[348527543,1736604661900,-500.0,0.00010438,2]
[348527544,1736604661910,-500.0,0.00010438,2]
[348527545,1736604661919,-500.0,0.00010438,2]
[348527546,1736604661929,-500.0,0.00010438,2]
[348527547,1736604661938,-500.0,0.00010438,2]
[348527548,1736604661947,-329.21490884,0.00010438,2]
[348527549,1736604661957,-500.0,0.00010438,2]
[348527550,1736604661966,-500.0,0.00010438,2]
[348527551,1736604661975,-500.0,0.00010438,2]
[348527552,1736604661984,-500.0,0.00010438,2]
[348527553,1736604661993,-275.94,0.00010438,2]
[348527554,1736604662002,-500.0,0.00010438,2]
[348527555,1736604662011,-506.05401608,0.00010438,2]
[348527556,1736604662020,-636.97648734,0.00010438,2]
[348527557,1736604662030,-228.5,0.00010438,2]
[348527558,1736604662040,-500.0,0.00010438,2]
[348527559,1736604662225,-154.39,0.00010438,2]
[348527560,1736604662235,-451.63909615,0.00010438,2]
[348527561,1736604662246,-500.0,0.00010438,2]
[348527562,1736604662255,-500.0,0.00010438,2]
[348527563,1736604662264,-302.39856273,0.00010438,2]
[348527564,1736604662274,-500.0,0.00010438,2]
[348527565,1736604662285,-259.4,0.00010438,2]
[348527566,1736604662295,-500.0,0.00010438,2]
[348527567,1736604662304,-500.0,0.00010439,2]
[348527568,1736604662318,-786.59,0.00010439,2]
[348527569,1736604662327,-500.0,0.00010439,2]
[348527570,1736604662336,-1048.71,0.00010439,2]
[348527571,1736604662346,-583.39,0.00010439,2]
[348527572,1736604662357,-979.84,0.00010439,2]
[348527573,1736604662366,-863.79,0.00010439,2]
[348527574,1736604662375,-1652.88,0.00010439,2]
[348527575,1736604662384,-908.05,0.00010439,2]
[348527576,1736604662394,-596.64,0.00010439,2]
[348527577,1736604662405,-500.0,0.00010439,2]
[348527578,1736604662415,-500.0,0.00010439,2]
[348527579,1736604662424,-646.06,0.0001044,2]
[348527580,1736604662434,-867.96,0.0001044,2]
[348527581,1736604662443,-1166.6,0.0001044,2]
[348527582,1736604662453,-590.56,0.0001044,2]
[348527583,1736604662463,-500.0,0.0001044,2]
[348527584,1736604662473,-191.38,0.0001044,2]
[348527585,1736604662483,-1022.37,0.00010441,2]
[348527586,1736604662492,-500.0,0.00010441,2]
[348527587,1736604662502,-841.6,0.00010441,2]
[348527588,1736604662511,-667.0,0.00010441,2]
[348527589,1736604662521,-500.0,0.00010441,2]
[348527590,1736604662531,-1612.03,0.00010441,2]
[348527591,1736604662541,-824.07,0.00010442,2]
[348527592,1736604662552,-835.26,0.00010442,2]
[348527593,1736604662562,-718.65,0.00010442,2]
[348527594,1736604662571,-1450.15,0.00010442,2]
[348527595,1736604662581,-928.23,0.00010442,2]
[348527596,1736604662591,-721.68,0.00010442,2]
[348527597,1736604662600,-1569.64,0.00010442,2]
[348527598,1736604662610,-857.46,0.00010442,2]
[348527599,1736604662620,-2317.87,0.00010442,2]
[348527600,1736604662630,-1128.34,0.00010442,2]
[348527601,1736604662639,-500.0,0.00010442,2]
[348527602,1736604662649,-1018.46,0.00010442,2]
[348527603,1736604662659,-904.94,0.00010442,2]
[348527604,1736604662669,-1421.54,0.00010442,2]
[348527605,1736604662679,-825.07,0.00010442,2]
[348527606,1736604662688,-2359.05,0.00010442,2]
[348527607,1736604662698,-1231.12,0.00010442,2]
[348527608,1736604662708,-1917.71,0.00010442,2]
[348527609,1736604662718,-907.9,0.00010442,2]
[348527610,1736604662728,-968.29,0.00010442,2]
[348527611,1736604662738,-770.4,0.00010442,2]
[348527612,1736604662747,-500.0,0.00010442,2]
[348527613,1736604662757,-866.99,0.00010442,2]
[348527614,1736604662766,-170.01,0.00010523,2]
[348527615,1736604662776,-202.88714472,0.00010623,2]
[348527616,1736604662786,-150.308,0.00010682,2]
[348527617,1736604662795,-9626.0,0.00010689,2]
[348527618,1736604662804,-3896.0,0.00010689,2]
[348527619,1736604662814,-150.0,0.00010689,2]
[348527620,1736604662823,-1173.0,0.00010689,2]
[348527621,1736604662833,-1104.0,0.00010689,2]
[348527622,1736604662843,-500.0,0.0001071,2]
[348527623,1736604662853,-859.12,0.0001071,2]
[348527624,1736604662862,-500.0,0.0001071,2]
[348527625,1736604662871,-947.85,0.0001071,2]
[348527626,1736604662881,-3638.85,0.0001071,2]
[348527627,1736604662892,-500.0,0.0001071,2]
[348527628,1736604662902,-799.27,0.0001071,2]
[348527629,1736604662911,-1201.74,0.0001071,2]
[348527630,1736604662921,-959.15,0.0001071,2]
[348527631,1736604662931,-677.89,0.0001071,2]
[348527632,1736604662940,-1470.61,0.0001071,2]
[348527633,1736604662951,-500.0,0.0001071,2]
[348527634,1736604662961,-2742.65,0.0001071,2]
[348527635,1736604662970,-1246.82,0.0001071,2]
[348527636,1736604662980,-500.0,0.0001071,2]
[348527637,1736604662989,-1725.71,0.0001071,2]
[348527638,1736604662999,-552.08,0.0001071,2]
[348527639,1736604663009,-1451.81,0.0001071,2]
[348527640,1736604663019,-500.0,0.0001071,2]
[348527641,1736604663028,-1104.76,0.0001071,2]
[348527642,1736604663038,-500.0,0.0001071,2]
[348527643,1736604663048,-1160.96,0.0001071,2]
[348527644,1736604663058,-500.0,0.0001071,2]
[348527645,1736604663068,-924.88,0.0001071,2]
[348527646,1736604663077,-500.0,0.0001071,2]
[348527647,1736604663087,-845.84,0.0001071,2]
[348527648,1736604663096,-500.0,0.0001071,2]
[348527649,1736604663106,-1425.89,0.0001071,2]
[348527650,1736604663115,-905.01,0.0001071,2]
[348527651,1736604663124,-727.59,0.0001071,2]
[348527652,1736604663135,-508.92,0.0001071,2]
[348527653,1736604663144,-679.2,0.0001071,2]
[348527654,1736604663154,-655.46,0.0001071,2]
[348527655,1736604663164,-722.85,0.0001071,2]
[348527656,1736604663174,-344.86,0.0001071,2]
[348527657,1736604663183,-500.0,0.0001071,2]
[348527658,1736604663193,-500.0,0.0001071,2]
[348527659,1736604663203,-741.73,0.0001071,2]
[348527660,1736604663212,-476.76,0.0001071,2]
[348527661,1736604663222,-500.0,0.00010711,2]
[348527662,1736604663232,-500.0,0.00010711,2]
[348527663,1736604663242,-500.0,0.00010711,2]
[348527664,1736604663252,-500.0,0.00010711,2]
[348527665,1736604663261,-248.16,0.00010711,2]
[348527666,1736604663271,-520.13586238,0.00010711,2]
[348527667,1736604663281,-500.0,0.00010711,2]
[348527668,1736604663291,-500.0,0.00010711,2]
[348527669,1736604663300,-500.0,0.00010711,2]
[348527670,1736604663310,-500.0,0.00010711,2]
[348527671,1736604663321,-500.0,0.00010711,2]
[348527672,1736604663332,-500.0,0.00010711,2]
[348527673,1736604663341,-580.7,0.00010711,2]
[348527674,1736604663351,-500.0,0.00010711,2]
[348527675,1736604663361,-500.0,0.00010711,2]
[348527676,1736604663371,-592.56,0.00010711,2]
[348527677,1736604663381,-500.0,0.00010711,2]
[348527678,1736604663390,-511.1,0.00010711,2]
[348527679,1736604663400,-500.0,0.00010711,2]
[348527680,1736604663410,-500.0,0.00010711,2]
[348527681,1736604663420,-500.0,0.00010711,2]
[348527682,1736604663430,-353.85,0.00010711,2]
[348527683,1736604663440,-500.0,0.00010711,2]
[348527684,1736604663449,-500.0,0.00010711,2]
[348527685,1736604663459,-500.0,0.00010711,2]
[348527686,1736604663470,-500.0,0.00010711,2]
[348527687,1736604663480,-500.0,0.00010711,2]
[348527688,1736604663490,-602.55,0.00010711,2]
[348527689,1736604663500,-251.47,0.00010711,2]
[348527690,1736604663510,-500.0,0.00010711,2]
[348527691,1736604663521,-500.0,0.00010711,2]
[348527692,1736604663531,-548.94,0.00010711,2]
[348527693,1736604663541,-500.0,0.00010711,2]
[348527694,1736604663551,-500.0,0.00010711,2]
[348527695,1736604663561,-610.8,0.00010711,2]
[348527696,1736604663571,-499.02,0.00010711,2]
[348527697,1736604663581,-500.0,0.00010711,2]
[348527698,1736604663590,-449.52,0.00010711,2]
[348527699,1736604663600,-667.71,0.00010711,2]
[348527700,1736604663610,-500.0,0.00010711,2]
[348527701,1736604663620,-335.77,0.00010711,2]
[348527702,1736604663631,-500.0,0.00010711,2]
[348527703,1736604663641,-618.88,0.00010711,2]
[348527704,1736604663651,-489.01203029,0.00010711,2]
[348527705,1736604663661,-713.91,0.00010711,2]
[348527706,1736604663672,-500.0,0.00010711,2]
[348527707,1736604663682,-531.29,0.00010711,2]
[348527708,1736604663692,-607.0,0.00010711,2]
[348527709,1736604663702,-500.0,0.00010711,2]
[348527710,1736604663711,-500.0,0.00010711,2]
[348527711,1736604663720,-500.0,0.00010711,2]
[348527712,1736604663730,-500.0,0.00010711,2]
[348527713,1736604663740,-500.0,0.00010711,2]
[348527714,1736604663750,-597.13,0.00010711,2]
[348527715,1736604663760,-500.0,0.00010711,2]
[348527716,1736604663770,-582.22,0.00010711,2]
[348527717,1736604663779,-759.87,0.00010711,2]
[348527718,1736604663789,-253.07,0.00010711,2]
[348527719,1736604663799,-500.0,0.00010711,2]
[348527720,1736604663809,-500.0,0.00010711,2]
[348527721,1736604663819,-500.0,0.00010711,2]
[348527722,1736604663829,-611.37,0.00010711,2]
[348527723,1736604663839,-168.25,0.00010711,2]
[348527724,1736604663849,-253.14793663,0.00010711,2]
[348527725,1736604663858,-500.0,0.00010711,2]
[348527726,1736604663870,-500.0,0.00010711,2]
[348527727,1736604663880,-500.0,0.00010711,2]
[348527728,1736604663890,-298.7,0.00010711,2]
[348527729,1736604663899,-500.0,0.00010711,2]
[348527730,1736604663909,-500.0,0.00010711,2]
[348527731,1736604663919,-500.0,0.00010711,2]
[348527732,1736604663929,-500.0,0.00010711,2]
[348527733,1736604663939,-521.53,0.00010711,2]
[348527734,1736604663949,-538.94,0.00010711,2]
[348527735,1736604663959,-500.0,0.00010711,2]
[348527736,1736604663969,-500.0,0.00010711,2]
[348527737,1736604663978,-500.0,0.00010711,2]
[348527738,1736604663988,-608.85,0.00010711,2]
[348527739,1736604663997,-500.0,0.00010711,2]
[348527740,1736604664008,-581.87,0.00010711,2]
[348527741,1736604664017,-500.0,0.00010711,2]
[348527742,1736604664027,-500.0,0.00010711,2]
[348527743,1736604664037,-500.0,0.00010711,2]
[348527744,1736604664047,-500.0,0.00010711,2]
[348527745,1736604664058,-500.0,0.00010711,2]
[348527746,1736604664068,-500.0,0.00010711,2]
[348527747,1736604664078,-500.0,0.00010711,2]
[348527748,1736604664089,-551.33,0.00010711,2]
[348527749,1736604664098,-598.57,0.00010711,2]
[348527750,1736604664108,-500.0,0.00010711,2]
[348527751,1736604664118,-500.0,0.00010711,2]
[348527752,1736604664128,-500.0,0.00010711,2]
[348527753,1736604664137,-500.0,0.00010711,2]
[348527754,1736604664147,-600.96,0.00010711,2]
[348527755,1736604664157,-164.29,0.00010711,2]
[348527756,1736604664168,-525.61,0.00010711,2]
[348527757,1736604664177,-576.85,0.00010711,2]
[348527758,1736604664186,-500.0,0.00010711,2]
[348527759,1736604664201,-500.0,0.00010711,2]
[348527760,1736604664211,-500.0,0.00010711,2]
[348527761,1736604664221,-500.0,0.00010711,2]
[348527762,1736604664231,-500.0,0.00010711,2]
[348527763,1736604664242,-500.0,0.00010711,2]
[348527764,1736604664252,-500.0,0.00010711,2]
[348527765,1736604664263,-500.0,0.00010711,2]
[348527766,1736604664273,-500.0,0.00010711,2]
[348527767,1736604664284,-500.0,0.00010711,2]
[348527768,1736604664295,-500.0,0.00010711,2]
[348527769,1736604664305,-986.11,0.00010711,2]
[348527770,1736604664319,-500.0,0.00010711,2]
[348527771,1736604664329,-500.0,0.00010711,2]
[348527772,1736604664340,-405.84,0.00010711,2]
[348527773,1736604664351,-523.99,0.00010711,2]
[348527774,1736604664361,-500.0,0.00010711,2]
[348527775,1736604664371,-500.0,0.00010711,2]
[348527776,1736604664381,-500.0,0.00010711,2]
[348527777,1736604664391,-500.0,0.00010711,2]
[348527778,1736604664400,-500.0,0.00010711,2]
[348527779,1736604664410,-2707.87,0.00010711,2]
[348527780,1736604664420,-500.0,0.00010711,2]
[348527781,1736604664430,-500.0,0.00010711,2]
[348527782,1736604664441,-500.0,0.00010711,2]
[348527783,1736604664451,-500.0,0.00010711,2]
[348527784,1736604664461,-500.0,0.00010711,2]
[348527785,1736604664471,-500.0,0.00010711,2]
[348527786,1736604664480,-500.0,0.00010711,2]
[348527787,1736604664489,-500.0,0.00010711,2]
[348527788,1736604664498,-593.85046676,0.00010711,2]